Cogmind - Beta 14 @@@ ROGUE MODE // 2024.12.22 @ 22:26:50 Player: xack Result: Destroyed by S-10 Pest with Light Assault Rifle Performance ------------- Evolutions (0) 0 Regions Visited (2) 400 Robots Destroyed (19) 95 Value Destroyed (370) 370 Prototype IDs (4) 80 Alien Tech Used (0) 0 Bonus (0) 0 TOTAL SCORE: 945 Bonus ------- None Cogmind --------- Core Integrity 0/250 Matter 300/300 Energy 240/280 System Corruption 0% Temperature Cool (0) Movement Treading (160) Location -10/Mines Parts ------- > --- POWER (1) -------- Cooled Ion Engine > --- PROPULSION (2) --- Light Treads Light Treads > --- UTILITY (2) ------ Medium Storage Unit Structural Scanner > --- WEAPON (2) ------- Mining Laser > --- INVENTORY (10) --- Cooled Ion Engine Carbon-fiber Leg Wheel Compact Wheel Compact Wheel Improved Heat Sink Light Armor Plating Grenade Launcher Grenade Launcher Peak State ------------ > --- POWER ------------ Ion Engine > --- PROPULSION ------- Light Treads Light Treads > --- UTILITY ---------- Improved Heat Sink Medium Storage Unit > --- WEAPON ----------- Assault Rifle Light Assault Rifle > --- INVENTORY -------- Ion Engine Light Treads Aluminum Leg Aluminum Leg Aluminum Leg Wheel Compact Wheel Small Laser Grenade Launcher Mining Laser [Rating: 10] Favorites ----------- Power Cooled Ion Engine Engine Cooled Ion Engine Propulsion Light Treads Treads Light Treads Wheel Compact Wheel Utility Medium Storage Unit Device Structural Scanner Storage Medium Storage Unit Weapon Assault Rifle Energy Gun EM Pulse Gun Ballistic Gun Assault Rifle Ballistic Cannon Light Cannon Launcher Grenade Launcher Special Weapon Mining Laser Build | -11 -10 -10 ------- Run | Yrd Mat Min Slots Evolved . | . . . Power . | . . . Propulsion . | . . . Utility . | . . . Weapon . | . . . Parts Attached 25 | 7 10 8 Power 3 | 1 2 . Engine 3 | 1 2 . Core . | . . . Reactor . | . . . Propulsion 6 | 2 2 2 Treads 5 | 1 2 2 Leg . | . . . Wheel 1 | 1 . . Hover . | . . . Flight . | . . . Utility 7 | 2 3 2 Device 5 | 1 2 2 Storage 2 | 1 1 . Processor . | . . . Hackware . | . . . Protection . | . . . Artifact . | . . . Weapon 9 | 2 3 4 Energy Gun 2 | . 1 1 Energy Cannon . | . . . Ballistic Gun 4 | 2 2 . Ballistic Cannon 1 | . . 1 Launcher 1 | . . 1 Special Weapon 1 | . . 1 Impact Weapon . | . . . Slashing Weapon . | . . . Piercing Weapon . | . . . Special Melee Weapon . | . . . Unidentified Prototypes . | . . . Parts Lost 9 | . 3 6 Power 1 | . 1 . Propulsion 2 | . . 2 Utility 2 | . 1 1 Weapon 4 | . 1 3 Highest Loss Streak 4 | . 2 4 To Critical Strikes 1 | . . 1 Average Slot Usage (%) 93 | . 99 89 Engine 13 | . 13 14 Treads 27 | . 27 27 Device 13 | . 13 14 Storage 14 | . 14 14 Energy Gun 5 | . 8 2 Ballistic Gun 10 | . 19 3 Ballistic Cannon 6 | . . 11 Peak Build Rating 10 | 9 10 10 Average Rating 9 | 5 9 9 On Entrance 6 | . 9 10 Naked Turns . | . . . Heaviest Build 24 | 15 23 24 Greatest Support 40 | 20 40 40 Greatest Overweight (x) . | . . . Average Overweight (x) . | . . . Largest Inventory Capacity 10 | 8 10 10 Average Capacity 9 | 7 9 10 Most Carried 10 | 8 10 10 Average Carried 9 | 5 9 9 Final Capacity 10 | 8 10 10 Final Carried 10 | 7 10 9 Class Distribution -------------------- 88% | Mutant 11% | Scavenger-Mutant Dominant Class ---------------- Mutant | -10/Materials Mutant | -10/Mines Resources | -11 -10 -10 ----------- Run | Yrd Mat Min Matter Collected 874 | 298 317 259 Remotely . | . . . Salvage Created 567 | 44 436 87 Parts 41 | 6 31 4 Haulers Intercepted 2 | . 2 . Recyclers Shooed 1 | . 1 . Parts Field Recycled . | . . . Retrieved Matter . | . . . Parts Self-Destructed . | . . . Prevented . | . . . Kills | -11 -10 -10 ------- Run | Yrd Mat Min Combat Hostiles Destroyed 18 | . 7 11 Guns 8 | . 7 1 Cannons 10 | . . 10 Classes Destroyed 8 | 1 5 2 Builder 1 | . 1 . Tunneler 2 | 2 . . Hauler 2 | . 2 . Watcher 3 | . 3 . Swarmer 5 | . 2 3 Grunt 5 | . 5 . Demolisher 1 | . . 1 Assembled 7 | . . 7 Best Kill Streak 6 | 1 3 6 Combat Bots Only 6 | . 3 6 Max Kills in Single Turn 1 | 1 1 1 Gunslinging . | . . . Exploded . | . . . Melee . | . . . Uniques/NPCs Destroyed . | . . . Combat | -11 -10 -10 -------- Run | Yrd Mat Min Hostile Shots Fired 137 | . 86 51 Missed 29 | . 22 7 Damage Taken 1516 | . 689 827 Core 253 | . 130 123 Absorbed by Shields . | . . . Core Remaining (%) 100 | 100 . . Volleys Fired 98 | 10 44 44 Largest 2 | 2 2 2 Hottest 135 | 40 60 135 Shots Fired 153 | 16 88 49 Gun 108 | 16 88 4 Cannon 39 | . . 39 Launcher 4 | . . 4 Special 2 | . . 2 Kinetic 137 | 16 78 43 Thermal 2 | . . 2 Explosive 4 | . . 4 Electromagnetic 10 | . 10 . Robot Hit Streak 15 | 7 15 6 Robot Miss Streak 5 | 2 4 5 Penetration Max . | . . . Secondary Targets 1 | . 1 . Max Gunslinging Chain 1 | . 1 . Shots Hit Robots 95 | 13 57 25 Core Hits 52 | 3 24 25 Critical Kills . | . . . Critical Parts Destroyed . | . . . Critical Strikes . | . . . Melee Attacks . | . . . Impact . | . . . Slashing . | . . . Piercing . | . . . Sneak Attacks . | . . . Combat Hostiles . | . . . Follow-up Attacks . | . . . Damage Inflicted 1456 | 171 744 541 Guns 938 | 171 744 23 Cannons 413 | . . 413 Explosions 105 | . . 105 Melee . | . . . Ramming . | . . . Kinetic 1215 | 171 608 436 Thermal . | . . . Explosive 105 | . . 105 Electromagnetic 136 | . 136 . Impact . | . . . Slashing . | . . . Piercing . | . . . Highest Corruption . | . . . Average Corruption . | . . . Corruption Purged . | . . . Corruption Blocked . | . . . Overload Shots . | . . . Overflow Damage 7 | . . 7 Projectiles . | . . . Explosions 7 | . . 7 Melee . | . . . Knockbacks 7 | . . 7 Impact . | . . . Kinetic 6 | . . 6 Secondary 1 | . . 1 Self-Inflicted Damage . | . . . Shots . | . . . Rammed . | . . . Targets Rammed . | . . . Kicked . | . . . Crushed . | . . . Highest Temperature 25 | . 12 25 Average Temperature 7 | . 5 12 Received Heat Transfer 263 | . 243 20 Siege Activations . | . . . Robots Corrupted . | . . . Combat Hostiles . | . . . Parts Fried 1 | . 1 . Impact Corruptions . | . . . Robots Melted . | . . . Combat Hostiles . | . . . Parts Melted . | . . . Heat Transferred . | . . . Parts Sabotaged . | . . . Parts Stolen . | . . . Parts Stripped . | . . . Power Chain Reactions . | . . . Alert | -11 -10 -10 ------- Run | Yrd Mat Min Peak Influence 152 | 10 152 65 Initial 6 | . 6 . Average 25 | 6 45 9 Maximum Alert Level . | . . . Low Security (%) 100 | 100 100 100 Level 1 . | . . . Level 2 . | . . . Level 3 . | . . . Level 4 . | . . . Level 5 . | . . . High Security . | . . . Max Security . | . . . Squads Dispatched 2 | . 2 . Investigation 2 | . 2 . Extermination . | . . . Reinforcement . | . . . Assault . | . . . Garrison . | . . . Intercept . | . . . Searches Triggered . | . . . Construction Impeded . | . . . Haulers Reinforced . | . . . Active Scanning Responses . | . . . Cargo Convoy Interrupts . | . . . Stealth | -11 -10 -10 --------- Run | Yrd Mat Min Distress Signals . | . . . Communications Jammed . | . . . Distress Signals . | . . . Times Spotted 46 | . 16 30 Peak Tracking Total 10 | . 5 10 Tactical Retreats 2 | . . 2 Traps | -11 -10 -10 ------- Run | Yrd Mat Min Traps Triggered 1 | . 1 . Indirectly . | . . . Trap Hack Attempts . | . . . Triggered . | . . . Disarmed . | . . . Reprogrammed . | . . . Reused . | . . . Traps Extracted . | . . . Installed . | . . . Triggered . | . . . Machines | -11 -10 -10 ---------- Run | Yrd Mat Min Machines Disabled . | . . . Max in Single Turn . | . . . Machines Repaired . | . . . Machines Dismantled . | . . . Machines Sabotaged . | . . . Overloaded Fab Kills . | . . . Hacking | -11 -10 -10 --------- Run | Yrd Mat Min Machines Accessed 7 | . 7 . Terminals 7 | . 7 . Fabricators . | . . . Repair Stations . | . . . Recycling Units . | . . . Scanalyzers . | . . . Garrison Access . | . . . Total Hacks 22 | . 22 . Successful 11 | . 11 . Failed 10 | . 10 . Catastrophic 1 | . 1 . Database Lockouts 1 | . 1 . Manual 5 | . 5 . Terminals 22 | . 22 . Fabricators . | . . . Repair Stations . | . . . Recycling Units . | . . . Scanalyzers . | . . . Garrison Access . | . . . Terminal Hacks 10 | . 10 . Robot Analysis 1 | . 1 . Prototype ID Bank 2 | . 2 . Locate Traps 3 | . 3 . Dispatch Records 1 | . 1 . Hauler Manifests 2 | . 2 . Zone Layout 1 | . 1 . Fabricator Hacks . | . . . Repair Station Hacks . | . . . Recycling Unit Hacks . | . . . Scanalyzer . | . . . Garrison Access Hacks . | . . . Unauthorized Hacks 1 | . 1 . Terminals 1 | . 1 . Botnet 1 | . 1 . Fabricators . | . . . Repair Stations . | . . . Recycling Units . | . . . Scanalyzers . | . . . Garrison Access . | . . . Data Cores Recovered . | . . . Used . | . . . Hacking Detections 7 | . 7 . Full Trace Events 1 | . 1 . Feedback Events . | . . . Feedback Blocked . | . . . Robot Schematics Acquired . | . . . Robots Built . | . . . Authchips . | . . . Time . | . . . Total Robot Build Rating . | . . . Part Schematics Acquired . | . . . Parts Built . | . . . Authchips . | . . . Time . | . . . Total Part Build Rating . | . . . Parts Repaired . | . . . Time . | . . . Parts Recycled . | . . . Recycled Matter . | . . . Retrieved Matter . | . . . Retrieved Components . | . . . Parts Scanalyzed . | . . . Part Schematics Acquired . | . . . Parts Damaged . | . . . Bothacking | -11 -10 -10 ------------ Run | Yrd Mat Min Used RIF Installer . | . . . Robots Hacked . | . . . Non-combat . | . . . Combat . | . . . Robot Hacks Applied . | . . . Relay Couplers Released . | . . . Fabnet Peak Effective % . | . . . Robots Rewired . | . . . Allies Hacked . | . . . Hacks Repelled . | . . . Allies | -11 -10 -10 -------- Run | Yrd Mat Min Total Allies 2 | . . 2 Largest Group 2 | . . 2 Highest-Rated Group 44 | . . 44 Highest-Rated Ally 31 | . . 31 Total Orders . | . . . Ally Attacks 23 | . . 23 Total Damage 297 | . . 297 Kills 7 | . . 7 Allies Corrupted . | . . . Allies Melted . | . . . Intel | -11 -10 -10 ------- Run | Yrd Mat Min Robot Analysis Total 1 | . 1 . Derelict Logs Recovered 1 | . . 1 Drone Launches . | . . . Drone Recoveries . | . . . Exploration | -11 -10 -10 ------------- Run | Yrd Mat Min Turns Passed 2917 | 126 1272 1519 Spaces Moved 1598 | 70 688 840 Core 5 | 5 . . Treads 1536 | 21 675 840 Legs . | . . . Wheels 57 | 44 13 . Hover . | . . . Flight . | . . . Fastest Speed 50 | 50 100 160 Average Speed 157 | 114 158 160 Slowest Speed 160 | 160 160 160 Overloaded Moves . | . . . Propulsion Burnouts . | . . . Robots Hopped . | . . . Cave-ins Triggered . | . . . Exploration Rate (%) 65 | 4 95 97 Regions Visited 2 Branch Regions 1 Pre-discovered Areas . | . . . Known Exits Taken . | . . . Unknown Exits Taken 2 | 1 1 . Scrap Searched 1 | . . 1 Spaces Dug . | . . . Terrain Destroyed 30 | . . 30 Melee . | . . . Projectile 1 | . . 1 AOE 29 | . . 29 Terrain Rammed . | . . . Walls Destroyed . | . . . Machines Disabled . | . . . Actions | -11 -10 -10 --------- Run | Yrd Mat Min Total 1850 | 98 788 964 Wait 87 | 1 18 68 Move 1596 | 69 687 840 Hop . | . . . Pick Up 30 | 11 15 4 Fast Attach 4 | 3 1 . Attach 12 | 4 3 5 Detach . | . . . Swap 9 | . 6 3 Drop 14 | . 14 . Fire 98 | 10 44 44 Melee . | . . . Ram . | . . . Kick . | . . . Crush . | . . . Escape Stasis . | . . . Rewire . | . . . Trap . | . . . Miscellaneous . | . . . Route ------- -11/Scrapyard -10/Materials (discovered 6 exits: [*Mat x3] / [*Min x2] / [Sub]) -10/Mines (discovered 4 exits: [*Mat x2] / [*Exi] / [Sub]) History --------- Turn | Location | Event 2 | -11/Scrapyard | Met Revision 17 12 | -11/Scrapyard | Discovered new exit (range 15) 127 | -11/Scrapyard | Entered Materials 301 | -10/Materials | Build established: Mutant 467 | -10/Materials | Discovered new exit (range 14) 593 | -10/Materials | Discovered new exit (range 16) 665 | -10/Materials | Core integrity fell below 50% 687 | -10/Materials | Discovered new exit (range 5) 816 | -10/Materials | Discovered new exit (range 6) 906 | -10/Materials | Central database locked down 1028 | -10/Materials | Discovered new exit (range 15) 1069 | -10/Materials | Discovered new exit (range 16) 1399 | -10/Materials | Entered Mines 1557 | -10/Mines | Learned Materials security intel 1571 | -10/Mines | A weapon hastily lodged in a ceiling crevice suddenly fell to the ground 1656 | -10/Mines | Assembled infested the area 1774 | -10/Mines | Lost 4 parts (2n2w) 1804 | -10/Mines | Core integrity fell below 20% 2130 | -10/Mines | Discovered new exit (range 5) 2244 | -10/Mines | Discovered new exit (range 14) 2521 | -10/Mines | Discovered new exit (range 9) 2761 | -10/Mines | Discovered new exit (range 6) 2918 | -10/Mines | Destroyed by S-10 Pest with Light Assault Rifle Last Messages --------------- 02293_ K-01 Serf cleans the Pulverizer. 02340_ S-10 Pest destroyed. 02342_ Acquired 12 matter. 02347_ K-01 Serf collects debris. 02347_ R-06 Scavenger collects Flight Unit. 02351_ K-01 Serf collects debris. 02469_ A derelict emerges from the shadows: "What are you doing alone down here?" 02471_ F2-RIW(g): "Well, at least you look like you can take care of yourself!" 02473_ F2-RIW(g): "I have the funny feeling that things are about to get a lot worse around here, see you around!" 02473_ F2-RIW(g) slips back into the shadows. 02521_ EXIT=FOUND 02718_ K-01 Serf cleans the Laser Drill. 02761_ EXIT=FOUND 02833_ Acquired 14 matter. 02916_ Critical hit (Destroy). 02916_ Lgt. Cannon destroyed. Map ----- +----------------------------------------------------+ | ???????## ##### ###?????????????????????? | | ???????## ##### ###?????????????????????? | | ??????### #### #####??????????????????? | | #????#### ### ## ###??????############# | | #??##### ### #### ##??????############# | | ####### ### #### ##??????## | | ##### ### ##?? ###??????## | | ### ###? #####??????## | | ### ###?? ####???????## """ """ "" | | ##### ### ##?? ########???## """ """ "" | | ######## ## ### ############# """ """ "" | | ???###### ## ### #### ####### "" | | ??????####### #### #### | | ###????###### ##### ### """ """ "" | | ####?######## ########## < ### """ """ "" | | ############# ######### #### """ """ "" | | ##### ###### ###??### ######## """ """ | | ### ###### ####### ######### | | ####### u###### #### """ """ "" | | ####### #### #### """ """ "" | | ###### ##### ### """ """ "" | | ###### ####### ### """ "" | | ## ###### #####?## ### | | ###### ##?### s####???## ### | | ####### ###??## ss;##????## ##### ####### | | ###?#### ###??##% @######## ##### ####### | | ######## ###???### ######## ##?## ##????? | | ####?### ###???#### ### ### ##### ###???? | | ###?### ###?????### % ## #### ##???? | | ##??### ###?????## #### ###???? | | ##??## ##??????## % ##########???? | | ###??## ##?????### #########< ####????? | | ####??### ###????### #########???????????? | | ###???########????## ######?????????????????? | | ???????######?????## ######??????????????????? | | ??????????????????### ####?????????????????????? | | ??????????????????#########??????????????????????? | | ???????????????????######????????????????????????? | | ?????????????????????????????????????????????????? | | | | | | | | | | | | | | | | | | | | | | | +----------------------------------------------------+ Best States ------------- Heat Dissipation 39 Energy Generation 14 Energy Capacity 280 Matter Stores 300 Matter Capacity 300 Sight Range 16 Robot Scan Range 14 Terrain Scan Range 16 Terrain Scan Density 10 Evasion (%) 40 Recoil Reduction 2 Item Schematics ----------------- None Robot Schematics ------------------ None Fabricated ------------ Nothing Alien Tech Used ----------------- None Achievements -------------- True Hacker Challenges ------------ None Game ------ Seed CommMatterClaws Manual? 0 Play Time 00:33:15 Cumulative 35.1 hours Start 2024.12.22 @ 21:41:23 End 2024.12.22 @ 22:26:50 Sessions 6 Manual Loads 0 Difficulty Rogue Special Mode None Game No. 21 Rogue 21 Adventurer 0 Explorer 0 Win Type - Total 0 Types 0/0/0/0/0/0/0/0/0 Lore% 14 Gallery% 26 Achievement% 23 Wizard Run 0 Options --------- Layout 1 ASCII 0 Keyboard 0 Movement Mouse Keybinds 0 Fullscreen 1 Font 32/Smallcaps Map View 50x35 Zoom Use 0% Tactical HUD 1 Map Filters NONE Filters NONE Steam 1 RUN: b952d0ae-3de7-425c-9d9d-d5f883865602